Cogmind - Beta 10 @@@ ROGUE MODE // 2020.09.09 @ 16:44:15 Player: Torako Result: Destroyed by D-53 Grenadier with Mini Grenade Launcher Performance ------------- Evolutions (0) 0 Regions Visited (2) 400 Robots Destroyed (19) 95 Value Destroyed (151) 151 Prototype IDs (4) 80 Alien Tech Used (0) 0 Bonus (-698) -698 TOTAL SCORE: 28 Bonus ------- Friendly Fire -698 Cogmind --------- Core Integrity 0/250 Matter 193/300 Energy 100/100 System Corruption 0% Temperature Cool (0) Movement Walking (180) Ox2 Location -10/Mines Parts ------- > --- POWER (1) -------- (None) > --- PROPULSION (2) --- Carbon-fiber Leg > --- UTILITY (2) ------ Large Storage Unit Large Storage Unit > --- WEAPON (2) ------- Mini Grenade Launcher > --- INVENTORY (16) --- Heat Sink Advanced Heat Sink Medium Matter Pod (100) Core Shielding Assault Rifle Light Cannon Light Cannon Light Cannon Light Cannon Light Cannon Grenade Launcher Mining Claw Peak State ------------ > --- POWER ------------ Improved Deuterium Engine > --- PROPULSION ------- Light Treads Light Treads > --- UTILITY ---------- Large Storage Unit Large Storage Unit > --- WEAPON ----------- Assault Rifle Mining Claw > --- INVENTORY -------- Ion Engine Aluminum Leg Carbon-fiber Leg Heat Sink Advanced Heat Sink Medium Matter Pod Core Shielding Assault Rifle Light Cannon Light Cannon Light Cannon Light Cannon Light Cannon Grenade Launcher Grenade Launcher Mini Grenade Launcher [Rating: 12] Favorites ----------- Power Ion Engine Engine Ion Engine Propulsion Light Treads Treads Light Treads Leg Aluminum Leg Utility Large Storage Unit Storage Large Storage Unit Weapon Assault Rifle Ballistic Gun Assault Rifle Launcher Mini Grenade Launcher Slashing Weapon Mining Claw Build | -11 -10 -10 ------- Run | Scr Mat Min Slots Evolved . | . . . Power . | . . . Propulsion . | . . . Utility . | . . . Weapon . | . . . Parts Attached 16 | 6 2 8 Power 3 | 1 . 2 Engine 3 | 1 . 2 Core . | . . . Reactor . | . . . Propulsion 4 | 2 . 2 Treads 2 | 2 . . Leg 2 | . . 2 Wheel . | . . . Hover . | . . . Flight . | . . . Utility 3 | 1 2 . Device . | . . . Storage 3 | 1 2 . Processor . | . . . Hackware . | . . . Protection . | . . . Artifact . | . . . Weapon 6 | 2 . 4 Energy Gun . | . . . Energy Cannon . | . . . Ballistic Gun 3 | 2 . 1 Ballistic Cannon . | . . . Launcher 2 | . . 2 Special Weapon . | . . . Impact Weapon . | . . . Slashing Weapon 1 | . . 1 Piercing Weapon . | . . . Special Melee Weapon . | . . . Unidentified Prototypes . | . . . Parts Lost 7 | . . 7 Power 2 | . . 2 Propulsion 3 | . . 3 Utility . | . . . Weapon 2 | . . 2 Highest Loss Streak 7 | . . 7 Average Slot Usage (%) 99 | . 99 98 Engine 14 | . 14 14 Treads 27 | . 28 26 Storage 27 | . 27 28 Ballistic Gun 23 | . 28 18 Slashing Weapon 4 | . . 8 Naked Turns . | . . . Heaviest Build 46 | 13 41 46 Greatest Support 40 | 40 40 40 Greatest Overweight (x) 3 | 1 1 3 Average Overweight (x) . | . . 1 Largest Inventory Capacity 16 | 6 16 16 Average Capacity 15 | 5 15 16 Most Carried 16 | 4 16 16 Average Carried 12 | 2 11 15 Final Capacity 16 | 6 16 16 Final Carried 16 | 4 16 12 Class Distribution -------------------- 100% | Mutant Dominant Class ---------------- Mutant | -10/Materials Mutant | -10/Mines Resources | -11 -10 -10 ----------- Run | Scr Mat Min Matter Collected 548 | 225 251 72 Remotely . | . . . Salvage Created 424 | . 133 291 Parts 22 | . 12 10 Haulers Intercepted . | . . . Recyclers Shooed . | . . . Parts Field Recycled . | . . . Retrieved Matter . | . . . Parts Self-Destructed . | . . . Prevented . | . . . Kills | -11 -10 -10 ------- Run | Scr Mat Min Combat Hostiles Destroyed 17 | . 5 12 Guns 7 | . 5 2 AOE 10 | . . 10 Classes Destroyed 4 | . 2 2 Recycler 1 | . . 1 Swarmer 3 | . 3 . Grunt 3 | . 2 1 Assembled 11 | . . 11 Best Kill Streak 11 | . 3 11 Combat Bots Only 11 | . 3 11 Max Kills in Single Turn 2 | . 1 2 Gunslinging . | . . . Exploded 2 | . . 2 Melee . | . . . Uniques/NPCs Destroyed 1 | . . 1 YI-UF0 (-10/Mines) Combat | -11 -10 -10 -------- Run | Scr Mat Min Damage Taken 1170 | . 173 997 Core 254 | . 29 225 Absorbed by Shields . | . . . Core Remaining (%) 100 | 100 . . Volleys Fired 33 | . 16 17 Largest 2 | . 2 2 Hottest 40 | . 40 40 Shots Fired 58 | . 32 26 Gun 50 | . 32 18 Cannon . | . . . Launcher 8 | . . 8 Special . | . . . Kinetic 50 | . 32 18 Thermal . | . . . Explosive 8 | . . 8 Electromagnetic . | . . . Robot Hit Streak 21 | . 4 21 Robot Miss Streak 3 | . 2 3 Penetration Max . | . . . Secondary Targets 2 | . 1 1 Max Gunslinging Chain 1 | . 1 1 Shots Hit Robots 44 | . 21 23 Core Hits 33 | . 7 26 Critical Hits . | . . . Critical Kills . | . . . Critical Parts Destroyed . | . . . Melee Attacks 2 | . . 2 Impact . | . . . Slashing 2 | . . 2 Piercing . | . . . Sneak Attacks 2 | . . 2 Combat Hostiles . | . . . Follow-up Attacks . | . . . Damage Inflicted 1336 | . 271 1065 Guns 469 | . 271 198 Cannons . | . . . Explosions 700 | . . 700 Melee 141 | . . 141 Ramming 26 | . . 26 Kinetic 469 | . 271 198 Thermal . | . . . Explosive 700 | . . 700 Electromagnetic . | . . . Impact . | . . . Slashing 141 | . . 141 Piercing . | . . . Highest Corruption . | . . . Average Corruption . | . . . Corruption Purged . | . . . Overload Shots . | . . . Overflow Damage 43 | . . 43 Projectiles . | . . . Explosions 43 | . . 43 Melee . | . . . Knockbacks . | . . . Impact . | . . . Kinetic . | . . . Secondary . | . . . Self-Inflicted Damage 78 | . . 78 Shots 3 | . . 3 Rammed 2 | . . 2 Targets Rammed 2 | . . 2 Kicked . | . . . Crushed . | . . . Highest Temperature 58 | . . 58 Average Temperature 20 | . . 20 Received Heat Transfer 256 | . 72 184 Siege Activations . | . . . Robots Corrupted . | . . . Combat Hostiles . | . . . Parts Fried . | . . . Impact Corruptions . | . . . Robots Melted . | . . . Combat Hostiles . | . . . Parts Melted . | . . . Heat Transferred . | . . . Parts Sabotaged . | . . . Parts Stolen . | . . . Parts Stripped . | . . . Power Chain Reactions . | . . . Missiles Intercepted . | . . . Alert | -11 -10 -10 ------- Run | Scr Mat Min Peak Influence 139 | . 139 35 Initial 9 | . . 9 Average 33 | . 62 10 Maximum Alert Level . | . . . Low Security (%) 100 | 100 100 100 Level 1 . | . . . Level 2 . | . . . Level 3 . | . . . Level 4 . | . . . Level 5 . | . . . High Security . | . . . Max Security . | . . . Squads Dispatched 3 | . 3 . Investigation 3 | . 3 . Extermination . | . . . Reinforcement . | . . . Assault . | . . . Garrison . | . . . Intercept . | . . . Construction Impeded . | . . . Haulers Reinforced . | . . . Stealth | -11 -10 -10 --------- Run | Scr Mat Min Distress Signals . | . . . Communications Jammed . | . . . Distress Signals . | . . . Times Spotted 25 | . 5 20 Peak Tracking Total 15 | . 3 15 Tactical Retreats 1 | . . 1 Traps | -11 -10 -10 ------- Run | Scr Mat Min Traps Triggered 2 | . 2 . Indirectly . | . . . Trap Hack Attempts . | . . . Triggered . | . . . Disarmed . | . . . Reprogrammed . | . . . Reused . | . . . Traps Extracted . | . . . Installed . | . . . Triggered . | . . . Machines | -11 -10 -10 ---------- Run | Scr Mat Min Machines Disabled . | . . . Max in Single Turn . | . . . Machines Sabotaged . | . . . Garrisons Compromised . | . . . Overloaded Fab Kills . | . . . Fab Network Shutdowns . | . . . Hacking | -11 -10 -10 --------- Run | Scr Mat Min Machines Accessed 4 | . 4 . Terminals 4 | . 4 . Fabricators . | . . . Repair Stations . | . . . Recycling Units . | . . . Scanalyzers . | . . . Garrison Access . | . . . Total Hacks 14 | . 14 . Successful 11 | . 11 . Failed 3 | . 3 . Catastrophic . | . . . Database Lockouts . | . . . Manual 12 | . 12 . Terminals 14 | . 14 . Fabricators . | . . . Repair Stations . | . . . Recycling Units . | . . . Scanalyzers . | . . . Garrison Access . | . . . Terminal Hacks 5 | . 5 . Part Schematic 1 | . 1 . Prototype ID Bank 2 | . 2 . Recall Investigation 1 | . 1 . Registered Prototypes 1 | . 1 . Fabricator Hacks . | . . . Repair Station Hacks . | . . . Recycling Unit Hacks . | . . . Scanalyzer . | . . . Garrison Access Hacks . | . . . Unauthorized Hacks 6 | . 6 . Terminals 6 | . 6 . Track 1 | . 1 . Botnet 4 | . 4 . Operators 1 | . 1 . Fabricators . | . . . Repair Stations . | . . . Recycling Units . | . . . Scanalyzers . | . . . Garrison Access . | . . . Data Cores Recovered . | . . . Used . | . . . Hacking Detections 3 | . 3 . Full Trace Events 1 | . 1 . Feedback Events . | . . . Feedback Blocked . | . . . Robot Schematics Acquired . | . . . Robots Built . | . . . Matter . | . . . Time . | . . . Total Robot Build Rating . | . . . Part Schematics Acquired 1 | . 1 . Parts Built . | . . . Matter . | . . . Time . | . . . Total Part Build Rating . | . . . Parts Repaired . | . . . Time . | . . . Parts Recycled . | . . . Recycled Matter . | . . . Retrieved Matter . | . . . Retrieved Components . | . . . Parts Scanalyzed . | . . . Part Schematics Acquired . | . . . Parts Damaged . | . . . Bothacking | -11 -10 -10 ------------ Run | Scr Mat Min Used RIF Installer . | . . . Robots Hacked . | . . . Non-combat . | . . . Combat . | . . . Robot Hacks Applied . | . . . Relay Couplers Released . | . . . Robots Rewired . | . . . Allies Hacked . | . . . Hacks Repelled . | . . . Allies | -11 -10 -10 -------- Run | Scr Mat Min Total Allies . | . . . Largest Group . | . . . Highest-Rated Group . | . . . Highest-Rated Ally . | . . . Total Orders . | . . . Ally Attacks . | . . . Total Damage . | . . . Kills . | . . . Allies Corrupted . | . . . Allies Melted . | . . . Intel | -11 -10 -10 ------- Run | Scr Mat Min Robot Analysis Total . | . . . Derelict Logs Recovered 1 | . . 1 Drone Launches . | . . . Drone Recoveries . | . . . Exploration | -11 -10 -10 ------------- Run | Scr Mat Min Turns Passed 1121 | 77 513 531 Spaces Moved 547 | 43 248 256 Core 4 | 4 . . Treads 537 | 39 248 250 Legs 6 | . . 6 Wheels . | . . . Hover . | . . . Flight . | . . . Fastest Speed 50 | 50 160 180 Average Speed 177 | 152 179 180 Slowest Speed 210 | 160 180 210 Overloaded Moves . | . . . Propulsion Burnouts . | . . . Robots Hopped . | . . . Cave-ins Triggered . | . . . Exploration Rate (%) 35 | 4 44 57 Regions Visited 2 Branch Regions 1 Pre-discovered Areas . | . . . Known Exits Taken . | . . . Unknown Exits Taken 2 | 1 1 . Scrap Searched . | . . . Spaces Dug . | . . . Terrain Destroyed 47 | . . 47 Melee . | . . . Projectile . | . . . AOE 47 | . . 47 Terrain Rammed . | . . . Walls Destroyed . | . . . Machines Disabled . | . . . Actions | -11 -10 -10 --------- Run | Scr Mat Min Total 634 | 52 285 297 Wait 8 | . 3 5 Move 545 | 42 247 256 Hop . | . . . Pick Up 21 | 4 14 3 Fast Attach 7 | 6 1 . Attach 4 | . . 4 Detach . | . . . Swap 5 | . 1 4 Drop 7 | . 3 4 Fire 33 | . 16 17 Melee 2 | . . 2 Ram . | . . . Kick . | . . . Crush 2 | . . 2 Escape Stasis . | . . . Rewire . | . . . Trap . | . . . Miscellaneous . | . . . Route ------- -11/Scrapyard -10/Materials (discovered 2 exits: [*Mat] / [*Min]) -10/Mines (discovered 3 exits: [*Mat x2] / [*Exi]) History --------- Turn | Location | Event 32 | -11/Scrapyard | Discovered new exit (range 15) 78 | -11/Scrapyard | Entered Materials 304 | -10/Materials | Build established: Mutant 307 | -10/Materials | Discovered new exit (range 11) 492 | -10/Materials | Discovered new exit (range 13) 591 | -10/Materials | Entered Mines 671 | -10/Mines | Discovered new exit (range 4) 718 | -10/Mines | YI-UF0 nonchalantly dropped a Grenade Launcher on the ground 728 | -10/Mines | Destroyed YI-UF0 886 | -10/Mines | Learned Materials garrison access intel 935 | -10/Mines | Deemed a non-threat by the Exiles lab entrance 935 | -10/Mines | Discovered new exit (range 5) 1062 | -10/Mines | Discovered new exit (range 10) 1071 | -10/Mines | Assembled infested the area 1093 | -10/Mines | Core integrity fell below 50% 1109 | -10/Mines | Core integrity fell below 20% 1122 | -10/Mines | Destroyed by D-53 Grenadier with Mini Grenade Launcher Last Messages --------------- as-78325 sneak attacks. K-01 Serf destroyed. The unstable cave ceiling collapses. Destroyed Asb. Hover Unit. Lgt. Treads destroyed. The unstable cave ceiling collapses. as-78325 destroyed. The unstable cave ceiling collapses. Aluminum Leg destroyed. U-05 Engineer lays Concrete. as-45897 destroyed. as-69897 destroyed. K-01 Serf destroyed. The unstable cave ceiling collapses. U-05 Engineer lays Concrete. Core Extractor disabled. U-05 Engineer lays Concrete. The unstable cave ceiling collapses. Ion Engine destroyed. U-05 Engineer lays Concrete. Map ----- +----------------------------------------------------+ | ????????????????????????????????# ???????????## | | ????????????????????????????????# ????????????# | | ????????????????????????????????# ????????????# | | ????????????????????????????????# #????????????# | | ????????????????????????????????# #??????#####?# | | ????????????????????????????????# #?????## ### | | ????????????????????????????????# #???### ## | | ????????????????????????????????# ##### """ #% | | ????????????????????????????????# ! """ | | ????????????????????????????????# !!= """ | | ?????????? ???????????????########*## # | | ?????????? ???????????### ##?#%## ##### ### | | ??????????# ?????##### ###=## #???# #?## | | ??????????? ##### ## ## #???# #??? | | ??????????? # # u "%*## #???# #??? | | ??????????# = ##### #???# #??? | | ???????????# # # * ##???# #???# #??? | | ????????????# dd ###????# #???# #??? | | ????????????## #####??????# #???# #??? | | ????????????# ! #??????????# #???# #??? | | ???????## ??# ###????????# #???# #??? | | ???????# <|# # #????????# #???# #??? | | ???????# =% = a #????????# #???# #### | | ??????# !! * = #????????# #???# | | ?????# #????????# #???# | | ?????# ## @ #????????# #???####### | | ?????# #??## #????????# #?????????? | | ??? ## #????????# #?????????? | | ?? ########?# " #????????# #?????????? | | ?????????????# ##### """ #????????# ###???????? | | ?????????????# ????## #????????# ##??????? | | ???????????? ??????# #????????### #??????? | | ??????????? ???????# #?????????## ##??????? | | ?????????????????????# ###?????????# #???????? | | ?????????????????????## ##???????????# ##???????? | | ??????????????????????####???????????#< #????????? | | ?????????????????????????????????????####????????? | | ?????????????????????????????????????????????????? | | ?????????????????????????????????????????????????? | | ?????????????????????????????????????????????????? | | ?????????????????????????????????????????????????? | | | | | | | | | | | | | | | | | | | +----------------------------------------------------+ Best States ------------- Heat Dissipation 25 Energy Generation 16 Energy Capacity 290 Matter Stores 300 Matter Capacity 300 Sight Range 16 Terrain Scan Density 10 Evasion (%) 40 Recoil Reduction 2 Item Schematics ----------------- Hcp. Storage Unit | -10/Materials | Hacked Robot Schematics ------------------ None Fabricated ------------ Nothing Alien Tech Used ----------------- None Achievements -------------- None Challenges ------------ None Game ------ Seed ProtonDiametricPenetrator Manual? 0 Play Time 00:10:01 Cumulative 211.0 hours Start 2020.09.09 @ 16:37:29 End 2020.09.09 @ 16:44:15 Sessions 1 Manual Loads 0 Difficulty Rogue Special Mode None Game No. 228 Rogue 228 Adventurer 0 Explorer 0 Win Type - Total 9 Types 7/0/2/0/0/0/0/0/0 Lore% 73 Gallery% 85 Achievement% 64 Wizard Run 0 Options --------- ASCII 0 Keyboard 1 Movement Numpad Keybinds 0 Fullscreen 1 Font 20/SmallcapsGlow Map View 66x50 Tactical HUD 1 Map Filters NONE Filters NONE Steam 1 RUN: 04939e58-a449-4180-ad8a-e84aeeacd2a1